fUST/lending_fUST_20260203
["ID","MTS","AMOUNT","RATE_DAILY","PERIOD"]
[404409266,1770114642546,-250.0,0.00141569,120]
[404409268,1770114642555,-250.0,0.00141569,120]
[404409270,1770114642563,-250.0,0.00141569,120]
[404409272,1770114642572,-250.0,0.00141569,120]
[404409274,1770114642582,-250.0,0.00141569,120]
[404409276,1770114642591,-46788.98091842,0.0014157,120]
[404409541,1770114645387,-500.0,0.00054794,120]
[404409543,1770114645397,-500.0,0.00060273,120]
[404409545,1770114645407,-500.0,0.00065753,120]
[404409547,1770114645419,-445.80726808,0.00071232,120]
[404409686,1770114646603,-54.19273192,0.00071232,120]
[404409688,1770114646612,-500.0,0.00076712,120]
[404409690,1770114646622,-500.0,0.00082191,120]
[404409692,1770114646631,-500.0,0.00087671,120]
[404409694,1770114646640,-500.0,0.0009315,120]
[404409696,1770114646649,-500.0,0.0009863,120]
[404409698,1770114646659,-564.45333507,0.00104109,120]
[404409700,1770114646668,-483.04225591,0.00104109,120]
[404409702,1770114646677,-424.72,0.00141559,10]
[404409704,1770114646687,-7403.59167685,0.0014157,120]
[404409707,1770114646698,-92390.48672332,0.0014157,120]
[404409709,1770114646710,-7040.51504122,0.0014157,120]
[404409749,1770114667735,500.0,0.00013273,2]
[404409750,1770114670653,500.0,0.00013699,2]
[404409751,1770114678136,500.0,0.00013273,2]
[404409756,1770114732908,500.0,0.00013699,2]
[404409757,1770114734757,500.0,0.00013699,2]
[404409758,1770114736111,500.82078053,0.00013699,2]
[404409759,1770114736379,500.0,0.00013699,2]
[404409760,1770114736442,500.0,0.00014247,2]
[404409761,1770114783599,104.39356326,0.00013273,2]
[404409762,1770114783622,235.53144857,0.00013273,2]
[404409763,1770114845970,500.0,0.00013273,2]
[404409764,1770114846007,500.0,0.00013821,2]
[404409765,1770114907909,500.0,0.00013699,2]
[404409766,1770114967499,505.92248654,0.00013273,2]
[404409773,1770115203478,150.16357316,0.00013699,2]
[404409925,1770115832543,-204.0,0.00025376,2]
[404409927,1770115832552,-322.56416287,0.00030016,2]
[404409965,1770115838703,-393.58644889,0.00030016,2]
[404409967,1770115838714,-234.52587191,0.00030116,2]
[404409970,1770115838726,-3772.80014129,0.00030116,2]
[404409972,1770115838738,-300.0,0.00030754,2]
[404409974,1770115838748,-608.18950337,0.00030755,5]
[404409976,1770115838759,-2432.75801346,0.00030755,5]
[404409978,1770115838770,-171.90577721,0.00030755,5]
[404409980,1770115838780,-215.40044911,0.00031168,2]
[404409982,1770115838791,-861.60179643,0.00031168,2]
[404409984,1770115838801,-1938.60404198,0.00031168,2]
[404409987,1770115838813,-687.62310885,0.00031519,5]
[404409990,1770115838825,-4516.21381212,0.00031542,2]
[404409993,1770115838836,-1041.66666667,0.00031859,2]
[404409996,1770115838846,-161.6083464,0.000332,117]
[404409999,1770115838857,-740.91124423,0.00033668,2]
[404410002,1770115838868,-652.3210296,0.00034793,2]
[404410006,1770115838879,-232.91,0.000349,2]
[404410009,1770115838889,-500.0,0.00035079,7]
[404410011,1770115838899,-500.0,0.00035079,7]
[404410014,1770115838910,-267.85042745,0.00035079,7]
[404410016,1770115838922,-3442.96077855,0.0003508,2]
[404410018,1770115838932,-1533.33613504,0.00036061,2]
[404410022,1770115838943,-162.94247,0.00036312,2]
[404410024,1770115838955,-457.890402,0.00036601,120]
[404410027,1770115838966,-317.06458387,0.00037787,2]
[404410029,1770115838978,-1000.0,0.000387,30]
[404410030,1770115838989,-532.38650748,0.00038885,2]
[404410033,1770115839002,-177.32920121,0.00040039,120]
[404410034,1770115839015,-177.32920121,0.00040039,120]
[404410036,1770115839026,-177.3292012,0.00040039,120]
[404410038,1770115839036,-155.498,0.00040039,2]
[404410040,1770115839048,-266.71320834,0.00040039,120]
[404410042,1770115839058,-154.668248,0.00040039,10]
[404410044,1770115839069,-238.168,0.00040054,56]
[404410047,1770115839080,-234.52587191,0.00040795,2]
[404410049,1770115839092,-1173.00367543,0.00042728,2]
[404410051,1770115839106,-162.94247,0.00043955,2]
[404410053,1770115839119,-4262.758818,0.00052283,28]
[404410055,1770115839129,-500.0,0.00054794,120]
[404410057,1770115839140,-500.0,0.00054794,120]
[404410059,1770115839151,-500.0,0.00054794,120]
[404410061,1770115839161,-526.81,0.00054794,30]
[404410063,1770115839172,-500.0,0.00054794,120]
[404410065,1770115839184,-500.0,0.00054794,120]
[404410067,1770115839195,-522.03605614,0.00054794,120]
[404410069,1770115839205,-500.0,0.00054794,120]
[404410071,1770115839215,-500.0,0.00054794,90]
[404410073,1770115839226,-500.0,0.00054794,120]
[404410075,1770115839237,-500.0,0.00054794,120]
[404410077,1770115839248,-2264.43,0.00054794,120]
[404410079,1770115839258,-500.0,0.00054794,120]
[404410081,1770115839269,-500.0,0.00054794,120]
[404410083,1770115839280,-500.0,0.00054794,120]
[404410085,1770115839290,-500.0,0.00054794,120]
[404410087,1770115839302,-500.0,0.00054794,120]
[404410089,1770115839318,-500.0,0.00055068,120]
[404410091,1770115839329,-500.0,0.00060273,120]
[404410093,1770115839340,-500.0,0.00060273,120]
[404410095,1770115839350,-526.81,0.00060273,30]
[404410097,1770115839362,-500.0,0.00060273,120]
[404410099,1770115839375,-500.0,0.00060273,120]
[404410101,1770115839385,-500.0,0.00060273,120]
[404410103,1770115839395,-500.0,0.00060273,90]
[404410104,1770115839405,-500.0,0.00060273,120]
[404410105,1770115839417,-500.0,0.00060273,120]
[404410106,1770115839429,-2264.43,0.00060273,120]
[404410107,1770115839441,-500.0,0.00060273,120]
[404410108,1770115839453,-500.0,0.00060273,120]
[404410109,1770115839465,-500.0,0.00060273,120]
[404410110,1770115839477,-234.52587191,0.00062154,2]
[404410111,1770115839491,-245.0,0.00065,120]
[404410112,1770115839504,-500.0,0.00065753,120]
[404410113,1770115839516,-526.81,0.00065753,30]
[404410114,1770115839532,-500.0,0.00065753,120]
[404410115,1770115839546,-500.0,0.00065753,120]
[404410116,1770115839558,-500.0,0.00065753,120]
[404410117,1770115839572,-500.0,0.00065753,90]
[404410118,1770115839584,-500.0,0.00065753,120]
[404410119,1770115839595,-500.0,0.00065753,120]
[404410120,1770115839608,-2264.43,0.00065753,120]
[404410121,1770115839620,-403.55,0.00065753,120]
[404410122,1770115839632,-500.0,0.00065753,120]
[404410123,1770115839645,-500.0,0.00065753,120]
[404410124,1770115839657,-500.0,0.00071232,120]
[404410126,1770115839669,-526.81,0.00071232,30]
[404410127,1770115839681,-500.0,0.00071232,120]
[404410129,1770115839695,-500.0,0.00071232,120]
[404410131,1770115839706,-500.0,0.00071232,120]
[404410133,1770115839718,-500.0,0.00071232,90]
[404410135,1770115839730,-500.0,0.00071232,120]
[404410138,1770115839742,-500.0,0.00071232,120]
[404410140,1770115839753,-2264.43,0.00071232,120]
[404410142,1770115839764,-500.0,0.00071232,120]
[404410144,1770115839776,-500.0,0.00071232,120]
[404410146,1770115839788,-200.0,0.00073427,120]
[404410148,1770115839800,-500.0,0.00076712,120]
[404410149,1770115839811,-526.81,0.00076712,30]
[404410152,1770115839825,-500.0,0.00076712,120]
[404410154,1770115839836,-500.0,0.00076712,120]
[404410156,1770115839847,-500.0,0.00076712,120]
[404410158,1770115839856,-500.0,0.00076712,90]
[404410159,1770115839869,-500.0,0.00076712,120]
[404410161,1770115839881,-500.0,0.00076712,120]
[404410163,1770115839892,-2264.43,0.00076712,120]
[404410165,1770115839903,-500.0,0.00076712,120]
[404410167,1770115839914,-500.0,0.00076712,120]
[404410169,1770115839924,-500.0,0.00082191,120]
[404410171,1770115839934,-526.81,0.00082191,30]
[404410173,1770115839945,-500.0,0.00082191,120]
[404410175,1770115839955,-500.0,0.00082191,120]
[404410177,1770115839965,-500.0,0.00082191,120]
[404410179,1770115839975,-500.0,0.00082191,90]
[404410181,1770115839985,-500.0,0.00082191,120]
[404410183,1770115839996,-500.0,0.00082191,120]
[404410185,1770115840010,-2264.43,0.00082191,120]
[404410188,1770115840023,-500.0,0.00082191,120]
[404410190,1770115840034,-500.0,0.00082191,120]
[404410192,1770115840045,-500.0,0.00087671,120]
[404410193,1770115840056,-526.81,0.00087671,30]
[404410195,1770115840067,-484.48215465,0.00087671,120]
[404410197,1770115840077,-500.0,0.00087671,120]
[404410199,1770115840086,-423.5532207,0.00087671,120]
[404410201,1770115840096,-500.0,0.00087671,90]
[404410203,1770115840106,-500.0,0.00087671,120]
[404410205,1770115840116,-500.0,0.00087671,120]
[404410207,1770115840126,-2264.43,0.00087671,120]
[404410209,1770115840136,-500.0,0.00087671,120]
[404410211,1770115840146,-500.0,0.00087671,120]
[404410213,1770115840156,-647.37091869,0.0009315,120]
[404410215,1770115840165,-526.81,0.0009315,30]
[404410217,1770115840175,-500.0,0.0009315,120]
[404410219,1770115840185,-500.0,0.0009315,90]
[404410221,1770115840195,-500.0,0.0009315,120]
[404410223,1770115840204,-301.97975452,0.0009315,120]
[404410225,1770115840214,-2264.43,0.0009315,120]
[404410227,1770115840224,-500.0,0.0009315,120]
[404410229,1770115840234,-500.0,0.0009315,120]
[404410232,1770115840248,-234.52587191,0.00094191,2]
[404410235,1770115840259,-353.94,0.0009599,10]
[404410238,1770115840269,-1015.0,0.00096,120]
[404410241,1770115840279,-526.81,0.0009863,30]
[404410244,1770115840290,-500.0,0.0009863,120]
[404410248,1770115840300,-438.56,0.0009863,90]
[404410251,1770115840313,-500.0,0.0009863,120]
[404410254,1770115840326,-2264.43,0.0009863,120]
[404410257,1770115840336,-500.0,0.0009863,120]
[404410261,1770115840346,-500.0,0.0009863,120]
[404410264,1770115840357,-344.35558611,0.0009999,14]
[404410267,1770115840368,-637.48,0.0009999,120]
[404410270,1770115840378,-52000.0,0.001,120]
[404410273,1770115840390,-344.35558611,0.00104099,15]
[404410277,1770115840400,-526.81,0.00104109,30]
[404410280,1770115840410,-500.0,0.00104109,120]
[404410283,1770115840422,-500.0,0.00104109,120]
[404410286,1770115840431,-2264.43,0.00104109,120]
[404410289,1770115840442,-500.0,0.00104109,120]
[404410292,1770115840454,-500.0,0.00104109,120]
[404410295,1770115840466,-234.52587191,0.0010487,2]
[404410315,1770115840575,-862.28632432,0.00107287,120]
[404410318,1770115840585,-526.81,0.00109589,30]
[404410320,1770115840595,-500.0,0.00109589,120]
[404410322,1770115840607,-579.879539,0.00109589,120]
[404410324,1770115840618,-2264.43,0.00109589,120]
[404410326,1770115840628,-500.0,0.00109589,120]
[404410328,1770115840640,-500.0,0.00109589,120]
[404410330,1770115840651,-325.389031,0.0011452,120]
[404410332,1770115840662,-526.81,0.00115068,30]
[404410335,1770115840674,-500.0,0.00115068,120]
[404410338,1770115840686,-2264.43,0.00115068,120]
[404410341,1770115840697,-500.0,0.00115068,120]
[404410344,1770115840707,-500.0,0.00115068,120]
[404410347,1770115840718,-526.81,0.00120547,30]
[404410350,1770115840729,-500.0,0.00120547,120]
[404410353,1770115840740,-2264.43,0.00120547,120]
[404410356,1770115840751,-500.0,0.00120547,120]
[404410358,1770115840762,-1000.0,0.00121,120]
[404410360,1770115840772,-526.81,0.00126027,30]
[404410362,1770115840782,-500.0,0.00126027,120]
[404410364,1770115840792,-2264.43,0.00126027,120]
[404410366,1770115840802,-500.0,0.00126027,120]
[404410368,1770115840814,-234.52587191,0.00126229,2]
[404410370,1770115840826,-526.81,0.00131506,30]
[404410372,1770115840839,-500.0,0.00131506,120]
[404410374,1770115840851,-2264.43,0.00131506,120]
[404410376,1770115840864,-500.0,0.00131506,120]
[404410377,1770115840875,-200.0,0.00136,120]
[404410379,1770115840888,-234.52587191,0.00136908,2]
[404410381,1770115840901,-526.81,0.00136986,30]
[404410383,1770115840912,-500.0,0.00136986,120]
[404410385,1770115840925,-2264.43,0.00136986,120]
[404410387,1770115840936,-158.49688178,0.00136986,120]
[404410389,1770115840947,-585.054088,0.00136986,120]
[404410391,1770115840958,-583.828633,0.00137424,120]
[404410393,1770115840969,-150.0,0.0013794,120]
[404410395,1770115840979,-309.03184,0.0013794,120]
[404410397,1770115840990,-468.06368,0.0013794,120]
[404410399,1770115841000,-627.09552,0.0013794,120]
[404410401,1770115841013,-786.12736,0.0013794,120]
[404410404,1770115841025,-945.1592,0.0013794,120]
[404410405,1770115841035,-1104.191041,0.0013794,120]
[404410407,1770115841047,-1263.222881,0.0013794,120]
[404410410,1770115841059,-1422.254721,0.0013794,120]
[404410412,1770115841071,-1581.286561,0.0013794,120]
[404410414,1770115841082,-30000.0,0.001388,120]
[404410416,1770115841093,-20000.0,0.001389,120]
[404410418,1770115841103,-15000.0,0.00139,120]
[404410420,1770115841113,-344.35558611,0.00139612,27]
[404410422,1770115841124,-3302.4292116,0.00139622,31]
[404410424,1770115841134,-12576.1531264,0.00139622,30]
[404410426,1770115841144,-1000.0,0.00139999,120]
[404410428,1770115841155,-171.24,0.0014,60]
[404410430,1770115841165,-20000.0,0.0014088,120]
[404410432,1770115841175,-1791.15,0.00141568,120]
[404410434,1770115841186,-500.0,0.00141568,120]
[404410436,1770115841196,-150.0,0.00141569,120]
[404410438,1770115841206,-201.59957773,0.00141569,120]
[404410440,1770115841217,-500.0,0.00141569,120]
[404410442,1770115841227,-500.0,0.00141569,120]
[404410444,1770115841238,-500.0,0.00141569,120]
[404410446,1770115841248,-150.0,0.00141569,120]
[404410448,1770115841258,-150.0,0.00141569,120]
[404410450,1770115841268,-150.0,0.00141569,120]
[404410453,1770115841281,-150.0,0.00141569,120]
[404410455,1770115841292,-150.0,0.00141569,120]
[404410457,1770115841302,-251.20899636,0.00141569,120]
[404410459,1770115841313,-150.0,0.00141569,120]
[404410461,1770115841323,-150.0,0.00141569,120]
[404410463,1770115841334,-150.0,0.00141569,120]
[404410465,1770115841344,-250.0,0.00141569,120]
[404410467,1770115841354,-150.0,0.00141569,120]
[404410469,1770115841365,-251.67567476,0.00141569,120]
[404410471,1770115841375,-150.0,0.00141569,120]
[404410473,1770115841385,-238.07744408,0.00141569,120]
[404410475,1770115841395,-200.93614749,0.00141569,120]
[404410477,1770115841405,-250.0,0.00141569,120]
[404410479,1770115841415,-250.0,0.00141569,120]
[404410481,1770115841424,-250.0,0.00141569,120]
[404410483,1770115841435,-250.0,0.00141569,120]
[404410485,1770115841446,-250.0,0.00141569,120]
[404410487,1770115841470,-250.0,0.00141569,120]
[404410489,1770115841482,-250.0,0.00141569,120]
[404410491,1770115841492,-250.0,0.00141569,120]
[404410493,1770115841503,-250.0,0.00141569,120]
[404410495,1770115841514,-250.0,0.00141569,120]
[404410497,1770115841525,-250.0,0.00141569,120]
[404410498,1770115841535,-250.0,0.00141569,120]
[404410500,1770115841546,-250.0,0.00141569,120]
[404410502,1770115841559,-250.0,0.00141569,120]
[404410504,1770115841571,-250.0,0.00141569,120]
[404410506,1770115841582,-250.0,0.00141569,120]
[404410508,1770115841594,-250.0,0.00141569,120]
[404410510,1770115841606,-250.0,0.00141569,120]
[404410512,1770115841618,-250.0,0.00141569,120]
[404410515,1770115841630,-250.0,0.00141569,120]
[404410516,1770115841641,-473661.72580766,0.0014157,120]
[404410958,1770115846835,-1828.89331188,0.00060173,120]
[404410960,1770115846845,-267.64928934,0.00120547,120]
[404411033,1770115849172,-1011.09705965,0.00099007,120]
[404411166,1770116090659,7608.39249173,0.00015997,2]
[404411167,1770116090681,2391.60750827,0.00015997,2]
[404411168,1770116103441,7608.40249173,0.00015997,2]
[404411169,1770116103467,2391.59750827,0.00015997,2]
[404411171,1770116116134,7608.41249173,0.00015997,2]
[404411172,1770116116154,2391.58750827,0.00015997,2]
[404411173,1770116136645,7608.42249173,0.00015997,2]
[404411174,1770116136671,2391.57750827,0.00015997,2]
[404411175,1770116147846,7608.43249173,0.00015997,2]
[404411176,1770116147869,2391.56750827,0.00015997,2]
[404411177,1770116167472,7608.44249173,0.00015997,2]
[404411178,1770116167494,2391.55750827,0.00015997,2]
[404411179,1770116178571,7608.45249173,0.00015997,2]
[404411180,1770116178591,2391.54750827,0.00015997,2]
[404411181,1770116188503,7608.46249173,0.00015997,2]
[404411182,1770116188526,2391.53750827,0.00015997,2]
[404411183,1770116198735,7608.47249173,0.00015997,2]
[404411184,1770116201452,-2391.52750827,0.00015997,2]
[404411185,1770116211604,5216.95498346,0.00015997,2]
[404411186,1770116211624,4783.04501654,0.00015997,2]
[404411187,1770116225590,5216.96498346,0.00015997,2]
[404411188,1770116225612,4783.03501654,0.00015997,2]
[404411189,1770116245314,5216.97498346,0.00015997,2]
[404411190,1770116245336,1830.02501654,0.00015997,2]
[404411194,1770116404716,500.0,0.00013273,2]
[404411195,1770116404776,500.0,0.00013821,2]
[404411305,1770117037743,-3999.99,0.00035527,2]
[404411306,1770117037752,-234.3935492,0.00035886,2]
[404411307,1770117037761,-177.32920121,0.00040041,120]
[404411308,1770117037770,-177.32920121,0.00040041,120]
[404411309,1770117037779,-177.3292012,0.00040041,120]
[404411310,1770117037787,-155.498,0.00040041,2]
[404411311,1770117037796,-266.71320834,0.00040041,120]
[404411312,1770117037805,-154.668248,0.00040041,10]
[404411313,1770117037814,-234.3935492,0.00046434,2]
[404411314,1770117037823,-419.0,0.0004978,2]
[404411315,1770117037832,-179.0,0.0004978,2]
[404411316,1770117037840,-150.342,0.00052383,120]
[404411317,1770117037850,-419.0,0.0005278,120]
[404411318,1770117037863,-179.0,0.0005278,120]
[404411319,1770117037871,-500.0,0.00054794,30]
[404411320,1770117037880,-500.0,0.00054794,120]
[404411321,1770117037889,-419.0,0.0005578,120]
[404411322,1770117037898,-179.0,0.0005578,120]
[404411323,1770117037907,-234.3935492,0.00056982,2]
[404411324,1770117037916,-306.53,0.0005878,120]
[404411325,1770117037925,-179.0,0.0005878,120]
[404411326,1770117037934,-500.0,0.00060273,30]
[404411327,1770117037943,-500.0,0.00065753,30]
[404411328,1770117037955,-234.3935492,0.0006753,2]
[404411330,1770117037964,-500.0,0.00071231,120]
[404411331,1770117037973,-500.0,0.00071231,120]
[404411333,1770117037983,-315.46,0.00071231,120]
[404411335,1770117037992,-318.04311217,0.00071231,120]
[404411337,1770117038002,-500.0,0.00071231,120]
[404411339,1770117038013,-500.0,0.00071231,120]
[404411341,1770117038026,-500.0,0.00071232,30]
[404411343,1770117038041,-500.0,0.0007671,120]
[404411345,1770117038052,-2059.23,0.0007671,120]
[404411347,1770117038062,-500.0,0.0007671,120]
[404411349,1770117038072,-500.0,0.00076711,120]
[404411350,1770117038081,-500.0,0.00076711,120]
[404411351,1770117038091,-500.0,0.00076711,120]
[404411352,1770117038100,-500.0,0.00076711,120]
[404411353,1770117038110,-500.0,0.00076711,120]
[404411354,1770117038119,-500.0,0.00076711,120]
[404411355,1770117038128,-500.0,0.00076711,90]
[404411356,1770117038138,-500.0,0.00076711,120]
[404411357,1770117038147,-500.0,0.00076711,120]
[404411358,1770117038157,-500.0,0.00076711,120]
[404411359,1770117038168,-500.0,0.00076712,30]
[404411360,1770117038178,-234.3935492,0.00078078,2]
[404411361,1770117038188,-4042.72679937,0.00082091,28]
[404411362,1770117038197,-500.0,0.0008219,120]
[404411363,1770117038207,-164.41,0.0008219,120]
[404411364,1770117038216,-500.0,0.0008219,120]
[404411365,1770117038225,-500.0,0.0008219,120]
[404411366,1770117038234,-500.0,0.0008219,120]
[404411367,1770117038244,-500.0,0.0008219,120]
[404411368,1770117038254,-500.0,0.0008219,120]
[404411369,1770117038263,-2059.23,0.0008219,120]
[404411370,1770117038273,-500.0,0.0008219,120]
[404411371,1770117038282,-500.0,0.0008219,120]
[404411372,1770117038292,-500.0,0.00082191,30]
[404411373,1770117038302,-500.0,0.00082191,120]
[404411374,1770117038311,-500.0,0.00082191,120]
[404411375,1770117038320,-500.0,0.00082191,120]
[404411376,1770117038331,-500.0,0.00082191,90]
[404411377,1770117038340,-500.0,0.00082191,120]
[404411378,1770117038349,-500.0,0.00087669,120]
[404411379,1770117038358,-2059.23,0.00087669,120]
[404411380,1770117038367,-500.0,0.00087669,120]
[404411381,1770117038376,-500.0,0.0008767,120]
[404411382,1770117038385,-500.0,0.0008767,120]
[404411383,1770117038395,-500.0,0.0008767,120]
[404411384,1770117038404,-500.0,0.0008767,120]
[404411385,1770117038413,-500.0,0.0008767,120]
[404411386,1770117038422,-637.38,0.0008767,120]
[404411387,1770117038431,-500.0,0.0008767,90]
[404411388,1770117038440,-200.0,0.0008767,120]
[404411389,1770117038449,-500.0,0.0008767,120]
[404411390,1770117038458,-500.0,0.0008767,120]
[404411391,1770117038468,-500.0,0.00087671,30]
[404411392,1770117038477,-258.02698369,0.00088482,2]
[404411393,1770117038487,-356.75487819,0.00089651,2]
[404411394,1770117038496,-248.89652137,0.0009305,120]
[404411395,1770117038505,-2492.03,0.00093149,120]
[404411396,1770117038514,-500.0,0.00093149,120]
[404411397,1770117038523,-500.0,0.00093149,120]
[404411398,1770117038533,-500.0,0.00093149,120]
[404411399,1770117038542,-500.0,0.00093149,120]
[404411400,1770117038551,-500.0,0.00093149,120]
[404411401,1770117038564,-500.0,0.00093149,120]
[404411402,1770117038573,-2059.23,0.00093149,120]
[404411403,1770117038582,-500.0,0.00093149,120]
[404411404,1770117038591,-500.0,0.00093149,120]
[404411405,1770117038601,-500.0,0.0009315,30]
[404411406,1770117038611,-500.0,0.0009315,120]
[404411407,1770117038619,-500.0,0.0009315,90]
[404411408,1770117038628,-500.0,0.0009315,120]
[404411409,1770117038638,-500.0,0.00098628,120]
[404411410,1770117038647,-207.81387852,0.00098628,120]
[404411411,1770117038656,-500.0,0.00098628,120]
[404411412,1770117038665,-2059.23,0.00098628,120]
[404411413,1770117038674,-500.0,0.00098628,120]
[404411414,1770117038684,-2492.03,0.00098629,120]
[404411415,1770117038693,-500.0,0.00098629,120]
[404411416,1770117038703,-500.0,0.00098629,120]
[404411417,1770117038712,-561.1,0.00098629,120]
[404411418,1770117038721,-500.0,0.00098629,120]
[404411419,1770117038731,-500.0,0.00098629,120]
[404411420,1770117038740,-500.0,0.00098629,120]
[404411421,1770117038751,-500.0,0.00098629,90]
[404411422,1770117038759,-500.0,0.00098629,120]
[404411423,1770117038769,-500.0,0.0009863,30]
[404411424,1770117038778,-234.3935492,0.00099174,2]
[404411425,1770117038787,-266.28,0.0009977,120]
[404411426,1770117038797,-500.0,0.00104107,120]
[404411427,1770117038807,-2059.23,0.00104107,120]
[404411428,1770117038816,-500.0,0.00104107,120]
[404411429,1770117038826,-2492.03,0.00104108,120]
[404411430,1770117038835,-500.0,0.00104108,120]
[404411431,1770117038845,-621.36449847,0.00104108,120]
[404411432,1770117038855,-382.2,0.00104108,120]
[404411433,1770117038865,-500.0,0.00104108,120]
[404411434,1770117038876,-500.0,0.00104109,30]
[404411435,1770117038892,-500.0,0.00104109,120]
[404411436,1770117038901,-616.68,0.00104109,90]
[404411437,1770117038910,-500.0,0.00104109,120]
[404411438,1770117038919,-500.0,0.00109587,120]
[404411439,1770117038928,-500.0,0.00109587,120]
[404411440,1770117038938,-2059.23,0.00109587,120]
[404411441,1770117038947,-500.0,0.00109587,120]
[404411442,1770117038961,-2492.03,0.00109588,120]
[404411443,1770117038971,-500.0,0.00109588,120]
[404411444,1770117038980,-500.0,0.00109588,120]
[404411445,1770117038990,-500.0,0.00109588,120]
[404411446,1770117039001,-500.0,0.00109589,30]
[404411447,1770117039010,-234.3935492,0.00109722,2]
[404411448,1770117039020,-591.279539,0.00115066,120]
[404411449,1770117039030,-2059.23,0.00115066,120]
[404411450,1770117039040,-500.0,0.00115066,120]
[404411451,1770117039050,-2492.03,0.00115067,120]
[404411452,1770117039060,-500.0,0.00115067,120]
[404411453,1770117039070,-500.0,0.00115067,120]
[404411454,1770117039079,-500.0,0.00115067,120]
[404411455,1770117039089,-500.0,0.00115067,120]
[404411456,1770117039099,-500.0,0.00115068,30]
[404411457,1770117039109,-862.28632432,0.00115402,120]
[404411458,1770117039118,-248.89652136,0.00117158,120]
[404411459,1770117039127,-167.71676391,0.00120087,5]
[404411460,1770117039137,-234.3935492,0.0012027,2]
[404411461,1770117039146,-500.0,0.00120546,120]
[404411462,1770117039156,-2059.23,0.00120546,120]
[404411463,1770117039165,-500.0,0.00120546,120]
[404411464,1770117039175,-2492.03,0.00120547,120]
[404411465,1770117039184,-500.0,0.00120547,120]
[404411466,1770117039194,-500.0,0.00120547,30]
[404411467,1770117039203,-500.0,0.00120547,120]
[404411468,1770117039213,-500.0,0.00120547,120]
[404411469,1770117039223,-3948.0,0.00125,120]
[404411470,1770117039233,-2059.23,0.00126025,120]
[404411471,1770117039242,-500.0,0.00126025,120]
[404411472,1770117039253,-2492.03,0.00126026,120]
[404411473,1770117039262,-500.0,0.00126026,120]
[404411474,1770117039271,-500.0,0.00126026,120]
[404411475,1770117039280,-500.0,0.00126026,120]
[404411476,1770117039289,-500.0,0.00126026,120]
[404411477,1770117039299,-500.0,0.00126027,30]
[404411478,1770117039308,-344.35558611,0.0012989,23]
[404411479,1770117039318,-3000.0,0.001299,120]
[404411480,1770117039327,-234.3935492,0.00130818,2]
[404411481,1770117039336,-500.0,0.00131505,120]
[404411482,1770117039346,-2059.23,0.00131505,120]
[404411483,1770117039354,-500.0,0.00131505,120]
[404411484,1770117039363,-2492.03,0.00131506,120]
[404411485,1770117039372,-500.0,0.00131506,120]
[404411486,1770117039386,-621.28819148,0.00131506,30]
[404411487,1770117039395,-500.0,0.00131506,120]
[404411488,1770117039404,-500.0,0.00131506,120]
[404411489,1770117039413,-3000.0,0.00135,120]
[404411490,1770117039422,-637.48,0.00136975,120]
[404411491,1770117039431,-2059.23,0.00136984,120]